fUSD/lending_fUSD_20250823
["ID","MTS","AMOUNT","RATE_DAILY","PERIOD"]
[381005855,1755936984476,-216.0,0.0003,120]
[381005856,1755936984502,-500.0,0.0003,120]
[381005857,1755936984527,-500.0,0.0003,120]
[381005858,1755936984554,-500.0,0.0003,120]
[381005859,1755936984580,-221.0,0.0003,120]
[381005860,1755936984604,-500.0,0.0003,60]
[381005861,1755936984634,-300.0,0.0003,60]
[381005862,1755936984659,-370.26077889,0.0003,120]
[381005863,1755936984687,-1000.0,0.0003,120]
[381005864,1755936984716,-212.10093811,0.0003,120]
[381005865,1755936984744,-267.86514131,0.000301,120]
[381005866,1755936984775,-294.38568436,0.0003013,120]
[381005867,1755936984802,-175.85,0.00030136,120]
[381005868,1755936984831,-1000.0,0.00030136,120]
[381005869,1755936984860,-493.8443626,0.00030137,120]
[381005870,1755936984887,-1000.0,0.00030137,120]
[381005871,1755936984914,-4838.35,0.00030157,60]
[381005872,1755936984943,-1000.0,0.00030164,120]
[381005873,1755936984970,-1000.0,0.00030191,120]
[381005874,1755936984996,-1000.0,0.00030219,120]
[381005875,1755936985022,-1000.0,0.00030246,120]
[381005876,1755936985048,-1000.0,0.00030273,120]
[381005877,1755936985073,-1000.0,0.00030301,120]
[381005878,1755936985104,-1000.0,0.00030328,120]
[381005879,1755936985133,-6000.0,0.00030331,120]
[381005880,1755936985162,-1000.0,0.00030356,120]
[381005881,1755936985189,-1000.0,0.00030383,120]
[381005882,1755936985217,-3002.0,0.000304,120]
[381005883,1755936985243,-400.0,0.0003041,120]
[381005884,1755936985272,-1000.0,0.0003041,120]
[381005885,1755936985298,-633.86877784,0.00030422,120]
[381005886,1755936985326,-1000.0,0.00030438,120]
[381005887,1755936985351,-1000.0,0.00030465,120]
[381005888,1755936985377,-519.56688215,0.00030493,120]
[381005889,1755936985402,-2000.0,0.00030655,120]
[381005890,1755936985428,-500.0,0.00030655,120]
[381005891,1755936985454,-200.0,0.00030678,120]
[381005892,1755936985480,-369.43730908,0.00030678,120]
[381005893,1755936985510,-400.0,0.00030684,120]
[381005894,1755936985537,-600.0,0.00030822,80]
[381005895,1755936985563,-37508.24562764,0.00030888,60]
[381005896,1755936985588,-150.0,0.00030919,120]
[381005897,1755936985614,-400.0,0.00030958,120]
[381005898,1755936985640,-230.54040229,0.00031,120]
[381005899,1755936985665,-920.0,0.00031,120]
[381005900,1755936985695,-17558.82674297,0.00031,120]
[381005901,1755936985723,-844.27675029,0.00031,120]
[381005902,1755936985750,-160.0,0.00031,120]
[381005903,1755936985776,-6000.0,0.00031002,120]
[381005904,1755936985803,-150.0,0.00031048,120]
[381005905,1755936985829,-500.0,0.00031232,120]
[381005906,1755936985855,-500.0,0.00031232,120]
[381005907,1755936985881,-500.0,0.00031232,120]
[381005908,1755936986269,-400.0,0.00031232,120]
[381005909,1755936986296,-3500.0,0.00031232,120]
[381005910,1755936986323,-682.23005995,0.00031232,120]
[381005911,1755936986353,-11514.22306318,0.0003138,120]
[381005912,1755936986381,-500.0,0.000314,120]
[381005913,1755936986408,-150.0,0.00031499,120]
[381005914,1755936986435,-400.0,0.00031506,120]
[381005915,1755936986464,-185.98,0.00031644,91]
[381005916,1755936986494,-2000.0,0.00031655,120]
[381005917,1755936986520,-500.0,0.00031655,120]
[381005918,1755936986547,-500.0,0.00031684,120]
[381005919,1755936986575,-150.0,0.00031699,120]
[381005920,1755936986602,-12500.12999801,0.0003177,80]
[381005921,1755936986628,-1000.27,0.0003178,120]
[381005922,1755936986654,-400.0,0.0003178,120]
[381005923,1755936986682,-34000.0,0.000318,120]
[381005924,1755936986709,-150.0,0.00031942,120]
[381005925,1755936986735,-50000.0,0.0003198,89]
[381005926,1755936986762,-700.0,0.00032,120]
[381005927,1755936986787,-30411.48723418,0.00032,120]
[381005928,1755936986814,-204.0,0.00032,120]
[381005929,1755936986840,-2626.0,0.00032,120]
[381005930,1755936986866,-2000.40564019,0.00032,60]
[381005931,1755936986892,-200.23,0.00032,90]
[381005932,1755936986919,-2000.0,0.00032,120]
[381005933,1755936986958,-1718.13708131,0.00032,120]
[381005934,1755936986989,-2234.59293371,0.00032,120]
[381005935,1755936987016,-100000.0,0.00032,60]
[381005936,1755936987045,-275.10024417,0.00032,90]
[381005937,1755936987073,-319.90944787,0.00032,120]
[381005938,1755936987107,-71107.79703807,0.00032,120]
[381005939,1755936987134,-5762.98647093,0.00032,60]
[381005940,1755936987163,-400.0,0.00032054,120]
[381005941,1755936987191,-11600.0,0.0003215,90]
[381005942,1755936987219,-50000.0,0.0003218,90]
[381005943,1755936987247,-4000.0,0.0003218,90]
[381005944,1755936987274,-90005.0,0.0003219,80]
[381005945,1755936987301,-611.9,0.00032233,60]
[381005946,1755936987360,-200.0,0.00032236,120]
[381005947,1755936987390,-400.0,0.00032328,120]
[381005948,1755936987417,-150.0,0.00032407,120]
[381005949,1755936987449,-80000.0,0.0003249,85]
[381005950,1755936987479,-70000.0,0.0003249,86]
[381005951,1755936987508,-2233.9,0.000325,120]
[381005952,1755936987536,-1002.0,0.000325,120]
[381005953,1755936987564,-150.0,0.00032523,120]
[381005954,1755936987591,-60000.0,0.0003258,88]
[381005955,1755936987618,-150.0,0.00032584,120]
[381005956,1755936987646,-400.0,0.00032602,120]
[381005957,1755936987673,-2000.0,0.00032655,120]
[381005958,1755936987701,-500.0,0.00032655,120]
[381005959,1755936987730,-2500.0,0.00032679,60]
[381005960,1755936987758,-1000.0,0.000327,120]
[381005961,1755936987785,-150.0,0.0003273,120]
[381005962,1755936987813,-1838.0,0.00032761,120]
[381005963,1755936987839,-919.0,0.00032761,120]
[381005964,1755936987866,-165.72018223,0.000328,120]
[381005965,1755936987893,-30000.0,0.00032856,79]
[381005966,1755936987926,-937.0,0.00032873,120]
[381005967,1755936987955,-400.0,0.00032876,120]
[381005968,1755936987986,-550.0,0.00032876,120]
[381005969,1755936988014,-550.0,0.00032876,120]
[381005970,1755936988044,-550.0,0.00032876,120]
[381005971,1755936988073,-550.0,0.00032876,120]
[381005972,1755936988103,-213.01177076,0.00032876,120]
[381005973,1755936988132,-2578.14,0.00032876,120]
[381005974,1755936988160,-2578.14,0.00032876,120]
[381005975,1755936988189,-2578.14,0.00032876,120]
[381005976,1755936988217,-2578.14,0.00032876,120]
[381005977,1755936988246,-2578.14,0.00032876,120]
[381005978,1755936988274,-2578.14,0.00032876,120]
[381005979,1755936988301,-2578.14,0.00032876,120]
[381005980,1755936988330,-2578.14,0.00032876,120]
[381005981,1755936988356,-2578.14,0.00032876,120]
[381005982,1755936988385,-2578.14,0.00032876,120]
[381005983,1755936988413,-2578.14,0.00032876,120]
[381005984,1755936988442,-2578.14,0.00032876,120]
[381005985,1755936988469,-2578.14,0.00032876,120]
[381005986,1755936988496,-2578.14,0.00032876,120]
[381005987,1755936988523,-2578.14,0.00032876,120]
[381005988,1755936988551,-2578.14,0.00032876,120]
[381005989,1755936988577,-2578.14,0.00032876,120]
[381005990,1755936988603,-2578.14,0.00032876,120]
[381005991,1755936988630,-2578.14,0.00032876,120]
[381005992,1755936988657,-2578.14,0.00032876,120]
[381005993,1755936988684,-2578.14,0.00032876,120]
[381005994,1755936988710,-2578.14,0.00032876,120]
[381005995,1755936988738,-2578.14,0.00032876,120]
[381005996,1755936988765,-2578.2839307,0.00032876,120]
[381005997,1755936988795,-1839.61,0.00032885,60]
[381005998,1755936988822,-10000.0,0.00032896,80]
[381005999,1755936988849,-100000.0,0.00032896,89]
[381006000,1755936988877,-440.58023986,0.00032976,60]
[381006001,1755936988905,-150.0,0.00032982,120]
[381006002,1755936988933,-1839.61,0.00032985,60]
[381006003,1755936988961,-442.0,0.00032986,90]
[381006004,1755936988990,-20000.0,0.0003299,82]
[381006005,1755936989019,-2867.52301279,0.00033,120]
[381006006,1755936989045,-1000.0,0.00033,120]
[381006007,1755936989071,-204.0,0.00033,120]
[381006008,1755936989103,-2363.999998,0.00033,120]
[381006009,1755936989423,-255.66424937,0.00033,120]
[381006010,1755936989452,-1839.61,0.00033085,60]
[381006011,1755936989479,-400.0,0.0003315,120]
[381006012,1755936989504,-150.0,0.00033169,120]
[381006013,1755936989531,-150.0,0.00033175,120]
[381006014,1755936989558,-30000.0,0.0003318,83]
[381006015,1755936989584,-1839.61,0.00033185,60]
[381006016,1755936989610,-1839.61,0.00033285,60]
[381006017,1755936989635,-1000.0,0.000333,120]
[381006018,1755936989663,-1839.61,0.00033385,60]
[381006019,1755936989689,-400.0,0.00033424,120]
[381006020,1755936989714,-150.0,0.00033451,120]
[381006021,1755936989739,-40000.0,0.0003348,84]
[381006022,1755936989765,-1839.61,0.00033485,60]
[381006023,1755936989791,-100000.0,0.00033582,90]
[381006024,1755936989816,-1839.61,0.00033585,60]
[381006025,1755936989841,-1000.0,0.000336,120]
[381006026,1755936989866,-193.050208,0.00033655,120]
[381006027,1755936989892,-500.0,0.00033655,120]
[381006028,1755936989919,-1839.61,0.00033685,60]
[381006029,1755936989945,-400.0,0.00033698,120]
[381006030,1755936989972,-5560.13,0.00033698,120]
[381006031,1755936989999,-150.0,0.00033755,120]
[381006032,1755936990028,-1839.61,0.00033785,60]
[381006033,1755936990055,-34000.0,0.000338,120]
[381006034,1755936990082,-1002.0,0.000338,120]
[381006035,1755936990110,-1839.61,0.00033885,60]
[381006036,1755936990135,-500.0,0.00033939,60]
[381006037,1755936990161,-400.0,0.00033972,120]
[381006038,1755936990187,-1839.61,0.00033985,60]
[381006039,1755936990213,-2858.50017277,0.00034,120]
[381006040,1755936990240,-700.0,0.00034,120]
[381006041,1755936990265,-1000.0,0.00034,60]
[381006042,1755936990289,-1552.0,0.00034,120]
[381006043,1755936990315,-1839.61,0.00034085,60]
[381006044,1755936990341,-150.0,0.00034158,120]
[381006045,1755936990367,-1839.61,0.00034185,60]
[381006046,1755936990391,-400.0,0.00034246,120]
[381006047,1755936990416,-600.0,0.00034247,120]
[381006048,1755936990442,-1839.61,0.00034285,60]
[381006049,1755936990469,-1839.61,0.00034385,60]
[381006050,1755936990497,-1840.05374866,0.00034485,60]
[381006051,1755936990523,-1000.0,0.000345,120]
[381006052,1755936990550,-937.0,0.00034516,120]
[381006053,1755936990575,-400.0,0.0003452,120]
[381006054,1755936990601,-867.58876335,0.00034624,60]
[381006055,1755936990626,-500.0,0.00034655,120]
[381006056,1755936990650,-534.98445398,0.000347,120]
[381006057,1755936990674,-400.0,0.00034794,120]
[381006058,1755936990699,-40000.0,0.0003482,80]
[381006059,1755936990726,-1769.01,0.00034829,60]
[381006060,1755936990753,-389.92174915,0.0003486,120]
[381006061,1755936990780,-1769.01,0.00034929,60]
[381006062,1755936990807,-2498.50208119,0.00035,90]
[381006063,1755936990831,-500.0,0.00035,120]
[381006064,1755936990854,-500.0,0.00035,120]
[381006065,1755936990880,-285.0,0.00035,120]
[381006066,1755936990903,-3186.36,0.00035,120]
[381006067,1755936990928,-1999.999999,0.00035,120]
[381006068,1755936990954,-325.01703862,0.00035,80]
[381006069,1755936990979,-1180.0,0.00035,60]
[381006070,1755936991004,-3214.32927596,0.00035,120]
[381006071,1755936991028,-1350.0,0.00035,60]
[381006072,1755936991053,-800.0,0.00035,120]
[381006073,1755936991077,-5599.0,0.00035,120]
[381006074,1755936991104,-200.0,0.00035,120]
[381006075,1755936991128,-10651.89643503,0.00035,120]
[381006076,1755936991154,-1769.01,0.00035029,60]
[381006077,1755936991179,-400.0,0.00035068,120]
[381006078,1755936991204,-1002.0,0.000351,120]
[381006079,1755936991232,-1769.01,0.00035129,60]
[381006080,1755936991256,-70000.0,0.0003514,70]
[381006081,1755936991282,-80000.0,0.0003517,80]
[381006082,1755936991307,-1769.01,0.00035229,60]
[381006083,1755936991333,-1769.01,0.00035329,60]
[381006084,1755936991357,-400.0,0.00035342,120]
[381006085,1755936991382,-40000.0,0.000354,90]
[381006086,1755936991406,-30000.0,0.0003542,90]
[381006087,1755936991432,-1769.01,0.00035429,60]
[381006088,1755936991458,-90000.0,0.0003548,90]
[381006089,1755936991486,-3200.0,0.000355,120]
[381006090,1755936991512,-1769.01,0.00035529,60]
[381006091,1755936991538,-400.0,0.00035616,120]
[381006092,1755936991562,-275.13382157,0.00035616,120]
[381006093,1755936991589,-1769.01,0.00035629,60]
[381006094,1755936991615,-500.0,0.00035655,120]
[381006095,1755936991641,-1769.01,0.00035729,60]
[381006096,1755936991667,-5619.17121134,0.000358,90]
[381006097,1755936991692,-34000.0,0.000358,120]
[381006098,1755936991718,-1769.01,0.00035829,60]
[381006099,1755936991743,-221.18863346,0.0003589,120]
[381006100,1755936991769,-60000.0,0.0003589,80]
[381006101,1755936991794,-5560.13,0.0003589,120]
[381006102,1755936991821,-1769.01,0.00035929,60]
[381006103,1755936991845,-1000.0,0.00036,120]
[381006104,1755936991870,-1000.0,0.00036,120]
[381006105,1755936991897,-700.0,0.00036,120]
[381006106,1755936991922,-368704.6114546,0.00036,120]
[381006107,1755936991948,-555.58551748,0.00036,120]
[381006108,1755936991974,-1033.25843118,0.00036,120]
[381006109,1755936992002,-1769.01,0.00036029,60]
[381006110,1755936992028,-1769.01,0.00036129,60]
[381006111,1755936992055,-1769.01,0.00036229,60]
[381006112,1755936992343,-937.0,0.00036242,120]
[381006113,1755936992371,-1769.01,0.00036329,60]
[381006114,1755936992397,-1002.0,0.000364,120]
[381006115,1755936992423,-1769.01,0.00036429,60]
[381006116,1755936992449,-1769.01,0.00036529,60]
[381006117,1755936992475,-1769.01,0.00036629,60]
[381006118,1755936992501,-500.0,0.00036655,120]
[381006119,1755936992526,-1769.01,0.00036729,60]
[381006120,1755936992551,-3566.46505489,0.000368,90]
[381006121,1755936992575,-200.0,0.00036813,120]
[381006122,1755936992599,-200.0,0.00036813,120]
[381006123,1755936992626,-1769.01,0.00036829,60]
[381006124,1755936992650,-1710.66888926,0.000369,120]
[381006125,1755936992676,-234731.28662143,0.000369,120]
[381006126,1755936992702,-1769.01,0.00036929,60]
[381006127,1755936992727,-1000.0,0.00036999,120]
[381006128,1755936992755,-280.0,0.00037,120]
[381006129,1755936992780,-5599.0,0.00037,120]
[381006130,1755936992806,-6263.0,0.00037,117]
[381006131,1755936992832,-1769.01,0.00037029,60]
[381006132,1755936992858,-1769.01,0.00037129,60]
[381006133,1755936992885,-24370.18743074,0.000372,120]
[381006134,1755936992912,-24370.18743071,0.000372,120]
[381006135,1755936992937,-24370.18743071,0.000372,120]
[381006136,1755936992963,-24370.18743071,0.000372,120]
[381006137,1755936992991,-24370.18743071,0.000372,120]
[381006138,1755936993018,-1769.01,0.00037229,60]
[381006139,1755936993046,-1769.01,0.00037329,60]
[381006140,1755936993075,-1769.01,0.00037429,60]
[381006141,1755936993104,-1769.01,0.00037529,60]
[381006142,1755936993131,-1769.01,0.00037629,60]
[381006143,1755936993157,-500.0,0.00037655,120]
[381006144,1755936993184,-600.0,0.00037671,120]
[381006145,1755936993211,-1769.01,0.00037729,60]
[381006146,1755936993237,-508.19,0.00037808,60]
[381006147,1755936993265,-1769.01,0.00037829,60]
[381006148,1755936993290,-508.2,0.00037839,80]
[381006149,1755936993316,-508.2,0.00037869,100]
[381006150,1755936993341,-204.0376616,0.0003787,120]
[381006151,1755936993367,-508.2,0.000379,120]
[381006152,1755936993394,-1769.01,0.00037929,60]
[381006153,1755936993418,-579.91412244,0.00037999,120]
[381006154,1755936993444,-620.280544,0.00038,120]
[381006155,1755936993470,-3215.88638777,0.00038,120]
[381006156,1755936993495,-676.65101043,0.00038,120]
[381006157,1755936993521,-1000.0,0.00038,120]
[381006158,1755936993547,-500.0,0.00038,120]
[381006159,1755936993573,-500.0,0.00038,120]
[381006160,1755936993599,-700.0,0.00038,120]
[381006161,1755936993625,-159.0,0.00038,120]
[381006162,1755936993651,-168.0,0.00038,120]
[381006163,1755936993677,-29940.12,0.00038,120]
[381006164,1755936993703,-1769.01,0.00038029,60]
[381006165,1755936993731,-937.0,0.00038054,120]
[381006166,1755936993759,-5560.13,0.00038082,120]
[381006167,1755936993787,-1769.01,0.00038129,60]
[381006168,1755936993813,-305441.0,0.000382,120]
[381006169,1755936993840,-1769.01,0.00038229,60]
[381006170,1755936993867,-1769.01,0.00038329,60]
[381006171,1755936993893,-1015.0,0.00038356,120]
[381006172,1755936993919,-2000.0,0.00038356,120]
[381006173,1755936993944,-2000.0,0.00038356,120]
[381006174,1755936993969,-2000.0,0.00038356,120]
[381006175,1755936993995,-2000.0,0.00038356,120]
[381006176,1755936994021,-2018.0,0.00038356,120]
[381006177,1755936994047,-2000.0,0.00038356,120]
[381006178,1755936994073,-2000.0,0.00038356,120]
[381006179,1755936994100,-2000.0,0.00038356,120]
[381006180,1755936994128,-2000.0,0.00038356,120]
[381006181,1755936994154,-2000.0,0.00038356,120]
[381006182,1755936994179,-2000.0,0.00038356,120]
[381006183,1755936994204,-2000.0,0.00038356,120]
[381006184,1755936994231,-2000.0,0.00038356,120]
[381006185,1755936994255,-2000.0,0.00038356,120]
[381006186,1755936994281,-2000.0,0.00038356,120]
[381006187,1755936994305,-2000.0,0.00038356,120]
[381006188,1755936994331,-2000.0,0.00038356,120]
[381006189,1755936994356,-2000.0,0.00038356,120]
[381006190,1755936994382,-2000.0,0.00038356,120]
[381006191,1755936994407,-2000.0,0.00038356,120]
[381006192,1755936994438,-2000.0,0.00038356,120]
[381006193,1755936994467,-2000.0,0.00038356,120]
[381006194,1755936994493,-2000.0,0.00038356,120]
[381006195,1755936994519,-2000.0,0.00038356,120]
[381006196,1755936994544,-2000.0,0.00038356,120]
[381006197,1755936994569,-2000.0,0.00038356,120]
[381006198,1755936994595,-2000.0,0.00038356,120]
[381006199,1755936994620,-2000.0,0.00038356,120]
[381006200,1755936994646,-409.0,0.00038356,120]
[381006201,1755936994672,-2000.0,0.00038356,120]
[381006202,1755936994697,-2000.0,0.00038356,120]
[381006203,1755936994723,-2000.0,0.00038356,120]
[381006204,1755936994749,-2000.0,0.00038356,120]
[381006205,1755936994774,-2000.0,0.00038356,120]
[381006206,1755936994800,-2052.0,0.00038356,120]
[381006207,1755936994825,-1844.80722812,0.00038356,90]
[381006208,1755936994852,-1769.01,0.00038429,120]
[381006209,1755936994877,-5000.0,0.0003849,120]
[381006210,1755936994902,-501.0,0.000385,120]
[381006211,1755936994930,-1769.01,0.00038529,120]
[381006212,1755936994957,-59385.61483157,0.00038544,120]
[381006213,1755936994984,-800.0,0.0003855,120]
[381006214,1755936995010,-2000.0,0.000386,60]
[381006215,1755936995299,-1769.01,0.00038629,120]
[381006216,1755936995327,-500.0,0.00038655,120]
[381006217,1755936995354,-4000.0,0.00038688,60]
[381006218,1755936995381,-22047.5510235,0.000387,120]
[381006219,1755936995408,-1769.01,0.00038729,120]
[381006220,1755936995435,-1769.01,0.00038829,120]
[381006221,1755936995460,-200.0,0.000389,120]
[381006222,1755936995488,-159.0,0.000389,120]
[381006223,1755936995514,-168.0,0.000389,120]
[381006224,1755936995539,-449.77685,0.000389,120]
[381006225,1755936995567,-1769.01,0.00038929,120]
[381006226,1755936995592,-57452.91175192,0.0003898,60]
[381006227,1755936995617,-3000.0,0.00039,120]
[381006228,1755936995642,-921.28880521,0.00039,120]
[381006229,1755936995667,-287.0,0.00039,120]
[381006230,1755936995691,-1483.64480808,0.00039,120]
[381006231,1755936995716,-283.0,0.00039,120]
[381006232,1755936995741,-380.0,0.00039,120]
[381006233,1755936995766,-305000.0,0.00039,120]
[381006234,1755936995790,-25569.34,0.00039,120]
[381006235,1755936995814,-799.86639204,0.00039,120]
[381006236,1755936995839,-1541.64186073,0.00039,120]
[381006237,1755936995865,-1593.04313346,0.00039,120]
[381006238,1755936995891,-5599.0,0.00039,120]
[381006239,1755936995918,-1769.01,0.00039029,120]
[381006240,1755936995946,-1769.6813735,0.00039129,120]
[381006241,1755936995972,-6890.4,0.00039263,117]
[381006242,1755936995998,-3968.07,0.00039397,120]
[381006243,1755936996024,-30000.0,0.000395,120]
[381006244,1755936996050,-3968.07,0.00039534,120]
[381006245,1755936996076,-1114.74,0.0003965,120]
[381006246,1755936996103,-500.0,0.00039655,120]
[381006247,1755936996131,-3968.07,0.00039671,120]
[381006248,1755936996158,-161.71344184,0.000397,120]
[381006249,1755936996183,-303.23879402,0.000397,120]
[381006250,1755936996210,-327.18246507,0.000397,120]
[381006251,1755936996236,-960.92,0.0003974,120]
[381006252,1755936996262,-340153.80907191,0.000398,120]
[381006253,1755937015539,-150.0,0.00031002,120]
[381006254,1755937015613,-545128.07992809,0.000398,120]
[381006255,1755937015639,-159.0,0.000398,120]
[381006256,1755937015664,-40000.0,0.000398,90]
[381006257,1755937015692,-40000.0,0.000398,120]
[381006258,1755937015719,-6701.72,0.000398,120]
[381006259,1755937015747,-168.0,0.000398,120]
[381006260,1755937015773,-2693.02993384,0.000398,120]
[381006261,1755937015799,-3968.07,0.00039808,120]
[381006262,1755937015825,-458.0,0.000399,90]
[381006263,1755937015850,-158.74813353,0.000399,120]
[381006264,1755937015875,-158.7481335,0.000399,120]
[381006265,1755937015901,-158.7481335,0.000399,120]
[381006266,1755937015926,-158.7481335,0.000399,120]
[381006267,1755937015952,-158.7481335,0.000399,120]
[381006268,1755937015978,-158.7481335,0.000399,120]
[381006269,1755937016006,-158.7481335,0.000399,120]
[381006270,1755937016031,-158.7481335,0.000399,120]
[381006271,1755937016056,-158.7481335,0.000399,120]
[381006272,1755937016082,-158.7481335,0.000399,120]
[381006273,1755937016111,-3968.07,0.00039945,120]
[381006274,1755937016138,-937.0,0.00039957,120]
[381006275,1755937016163,-93481.93128078,0.0003999,120]
[381006276,1755937016188,-65000.0,0.0003999,120]
[381006277,1755937016216,-2578.60382226,0.0004,90]
[381006278,1755937016240,-1698.49847765,0.0004,120]
[381006279,1755937016265,-511.07822618,0.0004,120]
[381006280,1755937016290,-2000.0,0.0004,120]
[381006281,1755937016313,-1000.0,0.0004,120]
[381006282,1755937016338,-30605.41598716,0.0004,60]
[381006283,1755937016361,-288.1005,0.0004,120]
[381006284,1755937016386,-700.0,0.0004,120]
[381006285,1755937016411,-200.0,0.0004,120]
[381006286,1755937016436,-20660.04817287,0.0004,120]
[381006287,1755937016460,-11298.8040152,0.0004,120]
[381006288,1755937016485,-7701.0,0.0004,120]
[381006289,1755937016510,-1983.0,0.0004,120]
[381006290,1755937016535,-516.0,0.0004,120]
[381006291,1755937016560,-200.0,0.0004,120]
[381006292,1755937016585,-500.0,0.0004,120]
[381006293,1755937016609,-500.000799,0.0004,120]
[381006294,1755937016635,-1042.87073991,0.0004,120]
[381006295,1755937016660,-2175.43291253,0.0004,120]
[381006296,1755937016687,-766.0,0.0004,120]
[381006297,1755937016712,-150.0,0.0004,120]
[381006298,1755937016737,-22500.0,0.0004,120]
[381006299,1755937016761,-3060.42702671,0.0004,120]
[381006300,1755937016786,-442.6,0.0004,120]
[381006301,1755937016811,-16936.91478625,0.0004,120]
[381006302,1755937016836,-30111.34728894,0.0004,60]
[381006303,1755937016860,-1500.0,0.0004,120]
[381006304,1755937016885,-177.49778049,0.0004,120]
[381006305,1755937016909,-3927.91437947,0.0004,120]
[381006306,1755937016933,-710.63891013,0.0004,120]
[381006307,1755937016958,-500000.0,0.0004,60]
[381006308,1755937016984,-844.18806451,0.0004,120]
[381006309,1755937017008,-5000.0,0.0004,120]
[381006310,1755937017033,-750.0,0.0004,120]
[381006311,1755937017060,-3008.8813,0.0004,120]
[381006312,1755937017084,-35503.83951932,0.0004,120]
[381006313,1755937017113,-844.18806451,0.0004,120]
[381006314,1755937017137,-951.44692073,0.0004,120]
[381006315,1755937017163,-238.07941012,0.0004,120]
[381006316,1755937017190,-562.18764553,0.0004,120]
[381006317,1755937017216,-260.25107706,0.0004,80]
[381006318,1755937017240,-337.19764856,0.0004,120]
[381006319,1755937017265,-824.10208871,0.0004,120]
[381006320,1755937017290,-2500.0,0.0004,120]
[381006321,1755937017316,-653.59,0.0004,120]
[381006322,1755937017342,-221.91,0.0004,120]
[381006323,1755937017367,-204.9,0.0004,120]
[381006324,1755937017393,-229.5,0.0004,120]
[381006325,1755937017419,-1369.61,0.0004,120]
[381006326,1755937017446,-616.94,0.0004,120]
[381006327,1755937017473,-3357.74,0.0004,120]
[381006328,1755937017498,-1008.46,0.0004,120]
[381006329,1755937017525,-212.10093811,0.0004,120]
[381006330,1755937017551,-2000.0,0.0004,120]
[381006331,1755937017576,-160.0,0.0004,120]
[381006332,1755937017601,-456.77,0.0004,120]
[381006333,1755937017629,-1978.09,0.0004,120]
[381006334,1755937017657,-3968.07,0.00040082,120]
[381006335,1755937017683,-3968.07,0.00040219,120]
[381006336,1755937017709,-5560.13,0.00040273,120]
[381006337,1755937017734,-3968.07,0.00040356,120]
[381006338,1755937017761,-5000.0,0.0004049,120]
[381006339,1755937017788,-3968.07,0.00040493,120]
[381006340,1755937017814,-1340.89549694,0.000405,120]
[381006341,1755937017839,-2000.0,0.000405,120]
[381006342,1755937018127,-30000.0,0.000405,120]
[381006343,1755937018154,-2000.0,0.000406,120]
[381006344,1755937018182,-3476.56,0.00040618,120]
[381006345,1755937018207,-3968.07,0.0004063,120]
[381006346,1755937018232,-453.52085,0.00040655,120]
[381006347,1755937018259,-159.0,0.000407,120]
[381006348,1755937018285,-168.0,0.000407,120]
[381006349,1755937018310,-3968.07,0.00040767,120]
[381006350,1755937018336,-5127.70179027,0.000408,60]
[381006351,1755937018362,-3242.99999999,0.000408,90]
[381006352,1755937018388,-3968.07,0.00040904,120]
[381006353,1755937018414,-277.12575958,0.00040999,120]
[381006354,1755937018440,-250.0,0.00041,120]